Cogmind - Beta 17.1 *** ADVENTURER MODE // 2026.09.07 @ 13:24:13 Player: Hechla Result: Destroyed by XS-PVW(R) with Subdweller Machine Gun Performance ------------- Evolutions (0) 0 Regions Visited (3) 600 Robots Destroyed (33) 165 Value Destroyed (779) 779 Prototype IDs (6) 120 Alien Tech Used (0) 0 Bonus (0) 0 TOTAL SCORE: 1664 Bonus ------- None Cogmind --------- Core Integrity 0/250 Matter 280/300 Energy 200/200 System Corruption 0% Temperature Cool (0) Movement Treading (260) Ox1 Location -10/Subcaves Parts ------- > --- POWER (1) -------- Subdweller Power Source > --- PROPULSION (2) --- Spiked Treads Aluminum Leg > --- UTILITY (2) ------ Small Storage Unit Seismic Detector > --- WEAPON (2) ------- Barrage Gun Subdweller Shrapnel Launcher > --- INVENTORY (8) ---- Ion Engine Targeting Computer ECM Suite Makeshift Light Armor Plating Riot Gun Advanced Beam Cannon Grenade Launcher Flamer Peak State ------------ > --- POWER ------------ Subdweller Power Source > --- PROPULSION ------- Spiked Treads Aluminum Leg > --- UTILITY ---------- Small Storage Unit Seismic Detector > --- WEAPON ----------- Advanced Beam Cannon Barrage Gun > --- INVENTORY -------- Ion Engine Targeting Computer ECM Suite Riot Gun Grenade Launcher Subdweller Shrapnel Launcher Flamer [Rating: 14] Favorites ----------- Power Ion Engine Engine Ion Engine Propulsion Aluminum Leg Treads Spiked Treads Leg Aluminum Leg Utility Small Storage Unit Device Seismic Detector Storage Small Storage Unit Weapon Advanced Beam Cannon Energy Cannon Advanced Beam Cannon Ballistic Gun Light Assault Rifle Ballistic Cannon Battle Cannon Launcher Subdweller Shrapnel Launcher Build | -11 -10 -10 -10 ------- Run | Yrd Mat Min Sub Slots Evolved . | . . . . Power . | . . . . Propulsion . | . . . . Utility . | . . . . Weapon . | . . . . Parts Attached 25 | 6 6 5 8 Power 6 | 1 2 1 2 Engine 6 | 1 2 1 2 Core . | . . . . Reactor . | . . . . Propulsion 6 | 2 1 1 2 Treads 2 | . . . 2 Leg 4 | 2 1 1 . Wheel . | . . . . Hover . | . . . . Flight . | . . . . Utility 3 | 1 1 1 . Device 2 | . 1 1 . Storage 1 | 1 . . . Processor . | . . . . Hackware . | . . . . Protection . | . . . . Artifact . | . . . . Weapon 10 | 2 2 2 4 Energy Gun . | . . . . Energy Cannon 3 | . 2 . 1 Ballistic Gun 5 | 2 . 1 2 Ballistic Cannon 1 | . . 1 . Launcher 1 | . . . 1 Special Weapon . | . . . . Impact Weapon . | . . . . Slashing Weapon . | . . . . Piercing Weapon . | . . . . Special Melee Weapon . | . . . . Unidentified Prototypes . | . . . . Parts Lost 2 | . . . 2 Power 1 | . . . 1 Propulsion 1 | . . . 1 Utility . | . . . . Weapon . | . . . . Highest Loss Streak 1 | . . . 1 To Critical Strikes . | . . . . Average Backups 7 | 1 7 8 7 Power . | . 1 1 . Propulsion 1 | . 1 1 . Utility 2 | . 1 3 2 Weapon 3 | . 2 3 3 Tool/Special . | . . . . Unused Backups 11 | . 4 . 7 Power . | . . . . Propulsion 1 | . 1 . . Utility 3 | . . . 3 Weapon 7 | . 3 . 4 Tool/Special . | . . . . Average Slot Usage (%) 99 | . 99 100 98 Engine 13 | . 14 14 13 Treads 4 | . . . 10 Leg 23 | . 28 28 16 Device 13 | . 13 14 14 Storage 14 | . 14 14 14 Energy Cannon 12 | . 9 14 13 Ballistic Gun 11 | . 18 3 11 Ballistic Cannon 3 | . . 10 2 Peak Build Rating 14 | 6 10 11 14 Average Rating 10 | 4 7 10 12 On Entrance 6 | . 6 10 11 Avg Prop Armor Cover (%) 7 | . . . 7 Naked Turns . | . . . . Heaviest Build 22 | 13 17 18 22 Greatest Support 40 | 20 20 20 40 Greatest Overweight (x) 1 | 1 . . 1 Average Overweight (x) . | . . . . Largest Inventory Capacity 8 | 8 8 8 8 Average Capacity 7 | 7 8 8 8 Most Carried 8 | 4 8 8 8 Average Carried 7 | 1 7 7 7 Final Capacity 8 | 8 8 8 8 Final Carried 8 | 4 8 8 8 Class Distribution -------------------- 100% | Mutant Dominant Class ---------------- Mutant | -10/Materials Mutant | -10/Mines Mutant | -10/Subcaves Resources | -11 -10 -10 -10 ----------- Run | Yrd Mat Min Sub Matter Collected 695 | 70 260 137 228 Remotely . | . . . . Salvage Created 955 | . 379 93 483 Parts 59 | . 30 6 23 Haulers Intercepted 2 | . 2 . . Recyclers Shooed 2 | . 1 1 . Parts Field Recycled . | . . . . Retrieved Matter . | . . . . Parts Self-Destructed 10 | . . . 10 Prevented . | . . . . Parts Restored . | . . . . Kills | -11 -10 -10 -10 ------- Run | Yrd Mat Min Sub Combat Hostiles Destroyed 26 | . 11 5 10 Guns 6 | . 2 1 3 Cannons 18 | . 8 4 6 Classes Destroyed 7 | . 5 . 2 Worker 2 | . 2 . . Hauler 2 | . 2 . . Watcher 3 | . 3 . . Swarmer 12 | . 9 3 . Grunt 6 | . 2 2 2 Sentry 1 | . . . 1 Subdweller 7 | . . . 7 Best Kill Streak 6 | . 6 3 2 Combat Bots Only 3 | . 3 3 2 Max Kills in Single Turn 2 | . 2 1 1 Gunslinging . | . . . . Exploded . | . . . . Melee . | . . . . Uniques/NPCs Destroyed . | . . . . Combat | -11 -10 -10 -10 -------- Run | Yrd Mat Min Sub Hostile Shots Fired 180 | . 52 46 82 Missed 52 | . 16 9 27 Hits 128 | . 36 37 55 Projectile 128 | . 36 37 55 Critical Strikes 3 | . . . 3 Damage Taken 1352 | . 225 239 888 Core 257 | . 43 69 145 Absorbed by Shields . | . . . . Ignored by Resistances 404 | . 77 77 250 Core Remaining (%) 100 | 100 . . . Volleys Fired 125 | . 45 23 57 Largest 2 | . 2 2 2 Hottest 101 | . 88 101 96 Shots Fired 213 | . 78 36 99 Gun 103 | . 42 19 42 Cannon 110 | . 36 17 57 Launcher . | . . . . Special . | . . . . Kinetic 107 | . 42 23 42 Thermal 106 | . 36 13 57 Explosive . | . . . . Electromagnetic . | . . . . Robot Hit Streak 27 | . 9 4 27 Robot Miss Streak 4 | . 4 3 2 Penetration Max . | . . . . Secondary Targets . | . . . . Shots Hit Robots 140 | . 52 19 69 Core Hits 47 | . 20 10 17 Critical Kills 2 | . 1 . 1 Critical Parts Destroyed . | . . . . Critical Strikes 3 | . 1 1 1 Meltdown 2 | . 1 . 1 Blast 1 | . . 1 . Melee Attacks . | . . . . Impact . | . . . . Slashing . | . . . . Piercing . | . . . . Sneak Attacks . | . . . . Combat Hostiles . | . . . . Follow-up Attacks . | . . . . Damage Inflicted 2510 | . 924 359 1227 Guns 892 | . 261 78 553 Cannons 1400 | . 464 262 674 Explosions 199 | . 199 . . Melee . | . . . . Ramming 19 | . . 19 . Kinetic 991 | . 261 177 553 Thermal 1500 | . 663 163 674 Explosive . | . . . . Electromagnetic . | . . . . Impact . | . . . . Slashing . | . . . . Piercing . | . . . . Highest Corruption . | . . . . Average Corruption . | . . . . Corruption Purged . | . . . . Corruption Blocked . | . . . . Overload Shots . | . . . . Overflow Damage 58 | . 58 . . Projectiles . | . . . . Explosions 58 | . 58 . . Melee . | . . . . Knockbacks 1 | . . 1 . Impact . | . . . . Kinetic 1 | . . 1 . Secondary . | . . . . Self-Inflicted Damage . | . . . . Shots . | . . . . Rammed . | . . . . Targets Rammed 9 | . . 9 . Kicked 9 | . . 9 . Crushed . | . . . . Highest Temperature 225 | . 206 208 225 Average Temperature 58 | . 65 80 32 Received Heat Transfer 479 | . 30 21 428 Effects 1 | . . 1 . Interference 1 | . . 1 . Siege Activations . | . . . . Martial Activations . | . . . . Shielding Activations . | . . . . Robots Disrupted . | . . . . Combat Hostiles . | . . . . Robots Corrupted . | . . . . Combat Hostiles . | . . . . Parts Fried . | . . . . Impact Corruptions . | . . . . Robots Melted 2 | . 1 . 1 Combat Hostiles 2 | . 1 . 1 Parts Melted 5 | . 2 . 3 Heat Transferred 2542 | . 1025 296 1221 Parts Sabotaged . | . . . . Parts Stolen . | . . . . Parts Stripped . | . . . . Power Chain Reactions . | . . . . Alert | -11 -10 -10 -10 ------- Run | Yrd Mat Min Sub Maximum Alert Level . | . . . . Low Security (%) 100 | 100 100 100 . Level 1 . | . . . . Level 2 . | . . . . Level 3 . | . . . . Level 4 . | . . . . Level 5 . | . . . . High Security . | . . . . Max Security . | . . . . Peak Influence 192 | . 192 84 . Initial 34 | . . 34 . Average 47 | . 78 16 . Influence Increases 677 | . 456 151 70 Destroy 0b10 Robot/C 380 | . 220 100 60 Destroy 0b10 Robot/NC 35 | . 35 . . Destroy Leader 80 | . 50 20 10 Successful Hack 97 | . 97 . . Disable Machine 45 | . 36 9 . Destroy Structure 25 | . 18 7 . Lose Combat Pursuer 15 | . . 15 . Influence Decreases 677 | . 351 256 70 Entered New Map 71 | . . 71 . Time Decay 606 | . 351 185 70 Squads Dispatched 2 | . 2 . . Investigation 2 | . 2 . . Extermination . | . . . . Reinforcement . | . . . . Assault . | . . . . Garrison . | . . . . Intercept . | . . . . Searches Triggered . | . . . . Construction Impeded . | . . . . Haulers Reinforced . | . . . . Active Scanning Responses . | . . . . Cargo Convoy Interrupts . | . . . . Stealth | -11 -10 -10 -10 --------- Run | Yrd Mat Min Sub Distress Signals 1 | . 1 . . Communications Jammed . | . . . . Distress Signals . | . . . . Times Spotted 38 | . 19 7 12 Peak Tracking Total 4 | . 4 3 2 Tactical Retreats 4 | . 2 2 . ECM-based Alert Blocks 5 | . 4 1 . Traps | -11 -10 -10 -10 ------- Run | Yrd Mat Min Sub Traps Triggered 2 | . 2 . . Indirectly . | . . . . Trap Hack Attempts . | . . . . Triggered . | . . . . Disarmed . | . . . . Reprogrammed . | . . . . Reused . | . . . . Traps Extracted . | . . . . Installed . | . . . . Triggered . | . . . . Machines | -11 -10 -10 -10 ---------- Run | Yrd Mat Min Sub Machines Disabled 6 | . 5 1 . Max in Single Turn 4 | . 4 1 . Machines Repaired . | . . . . Machines Dismantled . | . . . . Machines Sabotaged . | . . . . Overloaded Fab Kills . | . . . . Hacking | -11 -10 -10 -10 --------- Run | Yrd Mat Min Sub Machines Accessed 8 | . 8 . . Terminals 7 | . 7 . . Fabricators . | . . . . Repair Stations . | . . . . Recycling Units 1 | . 1 . . Scanalyzers . | . . . . Garrison Access . | . . . . Total Hacks 27 | . 27 . . Successful 20 | . 20 . . Failed 7 | . 7 . . Catastrophic 2 | . 2 . . Database Lockouts . | . . . . Manual 5 | . 5 . . Terminals 26 | . 26 . . Fabricators . | . . . . Repair Stations . | . . . . Recycling Units 1 | . 1 . . Scanalyzers . | . . . . Garrison Access . | . . . . Terminal Hacks 17 | . 17 . . Record 2 | . 2 . . Prototype ID Bank 3 | . 3 . . Branch Access Points 1 | . 1 . . Machine Index 1 | . 1 . . Terminal Index 2 | . 2 . . Recycling Unit Index 1 | . 1 . . Locate Traps 2 | . 2 . . Dispatch Records 1 | . 1 . . Maintenance Status 1 | . 1 . . Recall Investigation 1 | . 1 . . Recall Assault 1 | . 1 . . Zone Layout 1 | . 1 . . Fabricator Hacks . | . . . . Repair Station Hacks . | . . . . Recycling Unit Hacks 1 | . 1 . . Retrieve Components 1 | . 1 . . Scanalyzer . | . . . . Garrison Access Hacks . | . . . . Unauthorized Hacks 2 | . 2 . . Terminals 2 | . 2 . . Botnet 2 | . 2 . . Fabricators . | . . . . Repair Stations . | . . . . Recycling Units . | . . . . Scanalyzers . | . . . . Garrison Access . | . . . . Data Cores Recovered . | . . . . Used . | . . . . Hacking Detections 5 | . 5 . . Full Trace Events 1 | . 1 . . Feedback Events . | . . . . Feedback Blocked . | . . . . Robot Schematics Acquired . | . . . . Robots Built . | . . . . Authchips . | . . . . Time . | . . . . Total Robot Build Rating . | . . . . Part Schematics Acquired . | . . . . Parts Built . | . . . . Authchips . | . . . . Time . | . . . . Total Part Build Rating . | . . . . Part Studies Acquired . | . . . . Parts Repaired . | . . . . Time . | . . . . Parts Recycled . | . . . . Recycled Matter . | . . . . Retrieved Matter . | . . . . Retrieved Components 10 | . 10 . . Parts Scanalyzed . | . . . . Part Schematics Acquired . | . . . . Parts Damaged . | . . . . Bothacking | -11 -10 -10 -10 ------------ Run | Yrd Mat Min Sub Used RIF Installer . | . . . . Robots Hacked . | . . . . Non-combat . | . . . . Combat . | . . . . Robot Hacks Applied . | . . . . Relay Couplers Released . | . . . . Fabnet Peak Effective % . | . . . . Robots Rewired . | . . . . Allies Hacked . | . . . . Hacks Repelled . | . . . . Allies | -11 -10 -10 -10 -------- Run | Yrd Mat Min Sub Total Allies . | . . . . Largest Group . | . . . . Highest-Rated Group . | . . . . Highest-Rated Ally . | . . . . Total Orders . | . . . . Ally Attacks . | . . . . Total Damage . | . . . . Kills . | . . . . Allies Corrupted . | . . . . Allies Melted . | . . . . Intel | -11 -10 -10 -10 ------- Run | Yrd Mat Min Sub Active Infowar (turns) 3075 | . 920 868 1287 Seismic 1995 | . . 708 1287 ECM 1080 | . 920 160 . Robot Analysis Total . | . . . . Derelict Logs Recovered 3 | . . 1 2 Drone Launches . | . . . . Drone Recoveries . | . . . . Exploration | -11 -10 -10 -10 ------------- Run | Yrd Mat Min Sub Turns Passed 3192 | 60 977 868 1287 Spaces Moved 2152 | 43 688 615 806 Core 7 | 7 . . . Treads 283 | . . . 283 Legs 1862 | 36 688 615 523 Wheels . | . . . . Hover . | . . . . Flight . | . . . . Fastest Speed 50 | 50 120 120 120 Average Speed 125 | 110 120 120 135 Slowest Speed 260 | 120 120 120 260 Overloaded Moves . | . . . . Propulsion Burnouts . | . . . . Robots Hopped . | . . . . Potential Cave-ins . | . . . . Cave-ins Triggered . | . . . . Exploration Rate (%) 61 | 4 96 99 46 Regions Visited 3 Branch Regions 2 Pre-discovered Areas 2 | . . 1 1 Known Exits Taken 1 | . 1 . . Unknown Exits Taken 2 | 1 . 1 . Scrap Searched 2 | . . 1 1 Spaces Dug . | . . . . Terrain Destroyed 26 | . 19 7 . Melee . | . . . . Projectile . | . . . . AOE 26 | . 19 7 . Terrain Rammed . | . . . . Walls Destroyed . | . . . . Machines Disabled . | . . . . Actions | -11 -10 -10 -10 --------- Run | Yrd Mat Min Sub Total 2446 | 52 771 711 912 Wait 97 | . 16 55 26 Move 2149 | 42 687 614 806 Hop . | . . . . Pick Up 19 | 4 8 1 6 Fast Attach 11 | 6 2 1 2 Attach 3 | . . . 3 Detach 1 | . 1 . . Swap 12 | . 4 4 4 Drop 19 | . 8 4 7 Fire 125 | . 45 23 57 Melee . | . . . . Ram . | . . . . Kick 9 | . . 9 . Crush . | . . . . Escape Stasis . | . . . . Rewire 1 | . . . 1 Trap . | . . . . Miscellaneous . | . . . . Route ------- -11/Scrapyard -10/Materials (discovered 5 exits: [*Mat x2] / *Min x2 / [*Sub]) -10/Mines (discovered 3 exits: [*Mat x2] / [*Sub]) -10/Subcaves (discovered 1 exit: [*Mat]) History --------- Turn | Location | Event 2 | -11/Scrapyard | Met Revision 17 35 | -11/Scrapyard | Discovered new exit (range 16) 61 | -11/Scrapyard | Entered Materials 73 | -10/Materials | Discovered new exit (range 15) 273 | -10/Materials | Discovered new exit (range 15) 310 | -10/Materials | Build established: Mutant 360 | -10/Materials | Identified exit to Mines 726 | -10/Materials | Discovered new exit (range 9) 959 | -10/Materials | Discovered new exit (range 5) 1038 | -10/Materials | Entered Mines 1039 | -10/Mines | Learned location of Storage (-7) 1196 | -10/Mines | Discovered new exit (range 3) 1273 | -10/Mines | A weapon hastily lodged in a ceiling crevice suddenly fell to the ground 1311 | -10/Mines | Learned 2 Materials zone layouts 1311 | -10/Mines | Discovered new exit (range 11) 1777 | -10/Mines | Discovered new exit (range 11) 1906 | -10/Mines | Entered Subcaves 1910 | -10/Subcaves | Learned location of Zion (-6) 2026 | -10/Subcaves | A swath of the cavern ceiling suddenly collapsed 2073 | -10/Subcaves | Shifting Twisted Machinery released Flamer 2086 | -10/Subcaves | Shifting Twisted Machinery released Sub. Beam Cannon 2254 | -10/Subcaves | Curiously followed by a Cobbler waking with a query about "LVR3C" 2442 | -10/Subcaves | Shifting Twisted Machinery released Riot Gun 2457 | -10/Subcaves | Shifting Twisted Machinery released Battle Rifle 2514 | -10/Subcaves | A swath of the cavern ceiling suddenly collapsed 2731 | -10/Subcaves | Discovered new exit (range 9) 2866 | -10/Subcaves | Core integrity fell below 50% 2960 | -10/Subcaves | Core integrity fell below 20% 3027 | -10/Subcaves | Disturbed a concealed Subdweller 3155 | -10/Subcaves | Learned Materials garrison access intel 3193 | -10/Subcaves | Destroyed by XS-PVW(R) with Subdweller Machine Gun Last Messages --------------- MF-VUX(R) destroyed. Acquired 58 matter. Acquired 21 matter. XA-SAB(R) angrily emerges from the Twisted Machinery. XA-SAB(R) suffers critical hit (Meltdown). Sub. Optics melted. Acquired 12 matter. Searching scrap... Found Sub. Optics. Found Sub. Shrapnel Launcher. Found 54 Matter. Dropped Grenade Launcher. Acquired Sub. Shrapnel Launcher. PA-0FQ(O) collects matter. PA-0FQ(O) puts together Mak. Light Armor Plating. Acquired Mak. Light Armor Plating. PA-0FQ(O) puts together Mak. System Restoration Module. CU-WZA(u) deconstructs Twisted Machinery. Acquired derelict log, extracted data. Data stored: Materials garrison access intel. Map ----- +----------------------------------------------------+ | ?????????????????????????????????????????????????? | | ?????????????????????????????????????????????????? | | ?????????????????????????????????????????????????? | | ?????????????????????????????????????????????????? | | ?????????????????????????????????????????????????? | | ?????????????????????????????????????????????????? | | ?????????????????????????????????????????????????? | | ?????????????????????????????????????????????????? | | ?????????????????????????????????????????????????? | | ?????????????????????????????????????????????????? | | ?????????????????????????????????????????????????? | | ?????????????????????????????????????????????????? | | ?????????????????????????????????????????????????? | | ?????????????????????????????????????????????????? | | ?????????????????????????????????????????????????? | | ?????????????????????????????????????????????????? | | ????????##???????????????????????????????????????? | | ????#??? ?????????????????????#######???????????? | | ???## ?? ????????????????????#"&] "#???????????? | | ??## ?? ????????????????????#&##! #???????????? | | ?## ?# ????????????????????# ####???????????? | | ## ## ??????????????????####&"###???????????? | | ? ??????????????????# # ## ###???####??? | | ??# ??????????######### & ##?# #??? | | ?## ##??????### # ## # ## #???? | | ?# ##?##### R @ " ! #????? | | ??# ?##"## R O"" # #????? | | ### ## ""## # #"### # # ####### | | # ## ###" # # "# #?# # | | "" "" "" ######?# | | """""#"#"# ## ## ## #########" | | # ## ##"######?######## ## ###" | | #### #?######?????????????#### "#?### | | ???# ##????????????????????????## ####?? | | ???# ???????????????????????????## # ## ##? | | ???## ?????????????????????????????####"#![ """#? | | ????# ?????????????????????????????????## & """"#? | | ???? ?????????????????????????????????##|[=! ""### | | ??? ??????????????????????????????????# "### | | ?? ???????????????????????????????????## ! ## | | ? ?????????????????????????????????????## ! ## | | ????????????????????????????????????????## " | | ?????????????????????????????????????????## " | | ??????????????????????????????????????????##" | | ??????????????????????????????????????????##" | | ??????????????????????????????????????????# | | ??????????????????????????????????????????## | | ???????????????????????????????????????????## ## | | ????????????????????????????????????????????#### | | ?????????????????????????????????????????????## | +----------------------------------------------------+ Best States ------------- Heat Dissipation 25 Energy Generation 15 Energy Capacity 250 Matter Stores 300 Matter Capacity 300 Sight Range 16 Terrain Scan Density 10 ECM Strength 1 Resistance: KI 20 Resistance: TH 20 Resistance: EX 20 Resistance: EM 20 Resistance: I 20 Resistance: S 20 Resistance: P 20 Evasion (%) 55 Recoil Reduction 2 Offensive Hacking 10 Item Schematics ----------------- None Robot Schematics ------------------ None Fabricated ------------ Nothing Repaired ---------- Nothing Studied --------- None Alien Tech Used ----------------- None Achievements -------------- None Challenges ------------ None Game ------ Seed HypervelocityDeflectorMantle Manual? 0 Play Time 00:22:31 Cumulative 27.8 hours Start 2026.09.07 @ 13:02:37 End 2026.09.07 @ 13:24:13 Sessions 1 Manual Loads 0 Difficulty Adventurer Special Mode None Game No. 6 Rogue 0 Adventurer 6 Explorer 0 Win Type - Total 0 Types 0/0/0/0/0/0/0/0/0/0 Lore% 20 Gallery% 20 Achievement% 21 Wizard Run 0 Options --------- Layout 0 ASCII 0 Keyboard 0 Movement Mouse Keybinds 0 Fullscreen 1 Font 18/SmallcapsGlow Map View 76x50 Zoom Use 0% Tactical HUD 0 Map Filters NONE Filters NONE Steam 1 RUN: e1f22904-6e4e-4692-b0f7-2ae96566842e